bitfinex/quotes_SOLUSD_20241125
["timestamp","ask_amount","ask_price","bid_price","bid_amount"]
[1732551144993,31.61265571,243.25,243.21,16.442858]
[1732551145375,31.61265571,243.25,243.18,4.112]
[1732551145600,31.61265571,243.27,243.2,31.61265571]
[1732551145782,31.61265571,243.27,243.19,16.444292]
[1732551146286,31.61265571,243.31,243.22,31.61265571]
[1732551146683,31.61265571,243.33,243.26,31.61265571]
[1732551146902,31.61265571,243.33,243.24,31.61265571]
[1732551147304,12.8304,243.43,243.26,31.61265571]
[1732551147599,31.61265571,243.44,243.35,31.61265571]
[1732551147799,31.61265571,243.46,243.33,0.12549]
[1732551148012,31.61265571,243.46,243.38,31.61265571]
[1732551148179,31.61265571,243.44,243.36,31.61265571]
[1732551148380,31.61265571,243.4,243.33,0.12549]
[1732551148796,31.61265571,243.4,243.32,51.61265571]
[1732551149006,31.61265571,243.48,243.31,20.0]
[1732551149007,31.61265571,243.38,243.31,20.0]
[1732551149506,31.61265571,243.42,243.34,31.61265571]
[1732551149882,31.61265571,243.44,243.36,31.61265571]
[1732551150184,10.0,243.55,243.36,31.61265571]
[1732551150185,31.61265571,243.49,243.41,31.61265571]
[1732551150384,31.61265571,243.47,243.39,31.61265571]
[1732551150713,3.6948,243.59,243.46,20.0]
[1732551151013,31.61265571,243.53,243.45,31.61265571]
[1732551151200,31.61265571,243.57,243.48,20.0]
[1732551151384,31.61265571,243.55,243.45,31.61265571]
[1732551151585,31.61265571,243.53,243.46,20.0]
[1732551151789,31.61265571,243.51,243.44,20.0]
[1732551152000,50.84925571,243.6,243.42,4.1081]
[1732551152001,31.61265571,243.49,243.42,4.1081]
[1732551152188,31.61265571,243.53,243.45,31.61265571]
[1732551152406,31.61265571,243.55,243.45,31.61265571]
[1732551153290,13.6929,243.71,243.53,31.61265571]
[1732551153490,31.61265571,243.62,243.53,31.61265571]
[1732551153999,31.61265571,243.58,243.52,20.0]
[1732551154579,31.61265571,243.58,243.49,51.61265571]
[1732551154798,31.61265571,243.56,243.5,20.0]
[1732551155188,31.61265571,243.6,243.51,31.61265571]
[1732551155512,31.61265571,243.62,243.54,20.0]
[1732551155713,31.61265571,243.62,243.55,31.61265571]
[1732551156011,31.61265571,243.64,243.57,31.61265571]
[1732551156185,31.61265571,243.62,243.58,20.0]
[1732551156509,31.61265571,243.62,243.54,4.106]
[1732551156811,31.61265571,243.6,243.55,20.0]
[1732551157015,31.61265571,243.64,243.56,31.61265571]
[1732551157181,31.61265571,243.62,243.55,20.0]
[1732551157511,31.61265571,243.58,243.55,20.0]
[1732551157888,31.61265571,243.6,243.55,20.0]
[1732551158083,31.61265571,243.58,243.5,31.61265571]
[1732551158280,31.61265571,243.56,243.48,31.61265571]
[1732551158498,31.61265571,243.54,243.46,44.33095571]
[1732551158903,31.61265571,243.56,243.48,31.61265571]
[1732551159205,31.61265571,243.58,243.5,31.61265571]
[1732551159783,9.2337,243.68,243.53,51.61265571]
[1732551159784,31.61265571,243.61,243.53,51.61265571]
[1732551160787,31.61265571,243.63,243.55,31.61265571]
[1732551161207,31.61265571,243.65,243.58,4.1054]
[1732551161715,31.61265571,243.65,243.58,20.0]
[1732551162017,31.61265571,243.67,243.59,31.61265571]
[1732551162602,13.1751,243.84,243.65,31.61265571]
[1732551162922,29.5,243.66,243.64,20.0]
[1732551163225,29.5,243.66,243.65,17.3032]
[1732551163817,29.5,243.66,243.65,72.94371971]
[1732551164190,31.61265571,243.83,243.69,20.12549]
[1732551164392,31.61265571,243.83,243.75,31.61265571]
[1732551165110,3.6889,243.97,243.81,31.61265571]
[1732551165313,31.61265571,243.9,243.81,31.61265571]
[1732551165546,3.6899,243.91,243.81,31.61265571]
[1732551165547,31.61265571,243.88,243.81,31.61265571]
[1732551166040,3.6899,243.91,243.81,31.61265571]
[1732551166041,31.61265571,243.94,243.85,31.61265571]
[1732551166498,31.61265571,243.9,243.81,35.71405571]
[1732551166699,31.61265571,243.88,243.79,35.71445571]
[1732551167020,31.61265571,243.88,243.81,31.61265571]
[1732551167215,31.61265571,243.9,243.84,20.0]
[1732551167407,31.61265571,243.92,243.84,20.0]
[1732551168124,31.61265571,243.92,243.84,24.1009]
[1732551168308,31.61265571,243.9,243.81,31.61265571]
[1732551168998,31.61265571,243.86,243.82,20.0]
[1732551169331,31.61265571,243.86,243.77,31.61265571]
[1732551169332,31.61265571,243.84,243.75,31.61265571]
[1732551169810,31.61265571,243.82,243.75,31.61265571]
[1732551170007,31.61265571,243.82,243.73,31.61265571]
[1732551170402,31.61265571,243.86,243.77,31.61265571]
[1732551171005,31.61265571,243.82,243.73,31.61265571]
[1732551171414,31.61265571,243.84,243.77,31.61265571]
[1732551171622,31.61265571,243.82,243.72,31.61265571]
[1732551171835,31.61265571,243.84,243.76,31.61265571]
[1732551173307,31.61265571,243.8,243.72,31.61265571]
[1732551173534,31.61265571,243.78,243.7,35.71585571]
[1732551174416,19.3976572,243.79,243.7,23.5008572]
[1732551174816,19.3976572,243.83,243.74,19.3976572]
[1732551175143,19.3976572,243.81,243.72,19.3976572]
[1732551175314,19.3976572,243.79,243.7,23.5008572]
[1732551175716,19.3976572,243.74,243.66,19.3976572]
[1732551176036,19.3976572,243.76,243.68,19.3976572]
[1732551176341,19.3976572,243.78,243.68,19.3976572]
[1732551176511,19.3976572,243.78,243.68,23.5012572]
[1732551176833,19.3976572,243.76,243.68,23.5012572]
[1732551177449,19.3976572,243.7,243.65,13.199]
[1732551177612,12.9209,243.79,243.53,42.4454]
[1732551177613,19.3976572,243.66,243.57,19.3976572]
[1732551177938,19.3976572,243.64,243.57,19.3976572]
[1732551178432,0.12549,243.71,243.57,19.3976572]
[1732551178433,19.3976572,243.66,243.57,19.3976572]
[1732551178631,19.3976572,243.66,243.58,4.1054]
[1732551178832,19.3976572,243.64,243.55,23.5034572]
[1732551179221,19.3976572,243.6,243.53,4.1061]
[1732551179532,19.3976572,243.62,243.53,23.5037572]
[1732551179908,19.3976572,243.66,243.57,19.3976572]
[1732551180345,31.5579311,243.65,243.56,31.5579311]
[1732551180509,31.5579311,243.65,243.53,4.1061]
[1732551180510,31.5579311,243.65,243.58,31.5579311]
[1732551180714,31.5579311,243.65,243.56,31.5579311]
[1732551181224,31.5579311,243.61,243.52,35.6643311]
[1732551181417,31.5579311,243.59,243.52,31.5579311]
[1732551181625,31.5579311,243.59,243.51,13.0885]
[1732551181626,20.0,243.66,243.54,31.5579311]
[1732551181810,31.5579311,243.63,243.56,31.5579311]
[1732551182613,31.5579311,243.63,243.54,31.5579311]
[1732551182810,31.5579311,243.63,243.56,31.5579311]
[1732551183036,31.5579311,243.65,243.58,31.5579311]
[1732551183225,31.5579311,243.63,243.56,31.5579311]
[1732551183625,31.5579311,243.63,243.54,31.5579311]
[1732551183827,31.5579311,243.65,243.56,31.5579311]
[1732551184534,31.5579311,243.65,243.58,31.5579311]
[1732551184724,31.5579311,243.69,243.62,31.5579311]
[1732551184917,31.5579311,243.69,243.6,31.5579311]
[1732551185433,31.5579311,243.67,243.58,31.5579311]
[1732551185637,31.5579311,243.67,243.6,31.5579311]
[1732551186140,31.5579311,243.61,243.52,31.5579311]
[1732551186322,31.5579311,243.58,243.51,13.0885]
[1732551186639,31.5579311,243.62,243.56,4.1057]
[1732551186838,31.5579311,243.62,243.51,23.355]
[1732551186839,35.2522311,243.62,243.53,31.5579311]
[1732551187219,31.5579311,243.58,243.51,44.6464311]
[1732551187422,31.5579311,243.52,243.43,12.0603]
[1732551187623,31.5579311,243.46,243.4,16.422807]
[1732551187843,31.5579311,243.44,243.36,35.6668311]
[1732551188351,31.5579311,243.46,243.38,31.5579311]
[1732551188520,31.5579311,243.44,243.36,31.5579311]
[1732551188725,31.5579311,243.46,243.38,31.5579311]
[1732551188929,31.5579311,243.51,243.43,31.5579311]
[1732551189323,31.5579311,243.53,243.45,31.5579311]
[1732551189851,31.5579311,243.55,243.47,31.5579311]
[1732551190142,31.5579311,243.53,243.45,31.5579311]
[1732551190336,31.5579311,243.53,243.43,31.5579311]
[1732551190534,31.5579311,243.51,243.43,35.6657311]
[1732551191231,31.5579311,243.53,243.45,31.5579311]
[1732551191427,31.5579311,243.51,243.43,31.5579311]
[1732551191626,3.6951,243.56,243.38,31.5579311]
[1732551191627,31.5579311,243.46,243.38,31.5579311]
[1732551192231,31.5579311,243.48,243.35,14.3825]
[1732551192434,10.0,243.58,243.29,34.66558761]
[1732551192435,31.5579311,243.53,243.37,4.1089]
[1732551192738,31.5579311,243.49,243.41,31.5579311]
[1732551192949,31.5579311,243.51,243.37,4.1089]
[1732551193137,20.0,243.52,243.36,4.1091]
[1732551193448,31.5579311,243.48,243.39,31.5579311]
[1732551193937,31.5579311,243.5,243.41,31.5579311]
[1732551194139,31.5579311,243.52,243.45,31.5579311]
[1732551194340,31.5579311,243.54,243.45,31.5579311]
[1732551194548,31.5579311,243.52,243.45,35.6654311]
[1732551194741,31.5579311,243.52,243.45,31.5579311]
[1732551195042,31.5579311,243.52,243.43,35.6657311]
[1732551195221,31.5579311,243.5,243.43,35.6657311]
[1732551195569,31.5579311,243.52,243.43,35.6657311]
[1732551196125,31.5579311,243.54,243.46,31.5579311]
[1732551197039,31.5579311,243.52,243.43,4.1078]
[1732551197242,31.5579311,243.5,243.43,4.1078]
[1732551197422,31.5579311,243.54,243.44,31.5579311]
[1732551197627,31.5579311,243.54,243.46,31.5579311]
[1732551197918,31.5579311,243.54,243.46,35.6652311]
[1732551198123,31.5579311,243.6,243.5,31.5579311]
[1732551198326,31.5579311,243.6,243.52,31.5579311]
[1732551198622,3.6938,243.65,243.54,31.5579311]
[1732551198623,31.5579311,243.64,243.54,31.5579311]
[1732551198829,31.5579311,243.64,243.56,31.5579311]
[1732551199859,31.5579311,243.64,243.54,31.5579311]
[1732551200032,31.5579311,243.64,243.56,31.5579311]
[1732551200352,31.5579311,243.64,243.55,4.1059]
[1732551200353,23.10824362,243.68,243.6,19.41484362]
[1732551200659,19.41484362,243.66,243.58,19.41484362]
[1732551201027,0.12549,243.65,243.58,19.41484362]
[1732551201234,0.12549,243.65,243.51,12.2912]
[1732551201235,19.41484362,243.64,243.56,19.41484362]
[1732551202350,19.41484362,243.64,243.56,23.52044362]
[1732551202735,23.10864362,243.66,243.58,19.41484362]
[1732551203081,23.10864362,243.66,243.56,4.1056]
[1732551203082,19.41484362,243.7,243.62,19.41484362]
[1732551203351,19.41484362,243.76,243.68,19.41484362]
[1732551203944,19.41484362,243.74,243.66,19.41484362]
[1732551204131,19.41484362,243.76,243.68,19.41484362]
[1732551204333,23.10694362,243.76,243.66,19.41484362]
[1732551204636,19.41484362,243.72,243.64,19.41484362]
[1732551204831,19.41484362,243.74,243.64,19.41484362]
[1732551205138,19.41484362,243.78,243.7,19.41484362]
[1732551205331,23.10674362,243.78,243.7,19.41484362]
[1732551205532,3.6919,243.78,243.7,19.41484362]
[1732551205853,23.10674362,243.78,243.7,19.41484362]
[1732551206349,23.10664362,243.78,243.7,19.41484362]
[1732551206551,19.41484362,243.76,243.68,19.41484362]
[1732551207535,19.41484362,243.76,243.68,23.51844362]
[1732551208234,19.41484362,243.78,243.7,19.41484362]
[1732551208439,19.41484362,243.8,243.7,19.41484362]
[1732551209154,19.41484362,243.82,243.74,19.41484362]
[1732551209339,19.41484362,243.85,243.76,19.41484362]
[1732551209529,19.41484362,243.81,243.74,19.41484362]
[1732551209733,19.41484362,243.81,243.75,20.0]
[1732551210367,23.10604362,243.83,243.75,20.0]
[1732551210736,23.10604362,243.83,243.7,12.8158]
[1732551210737,19.41484362,243.79,243.73,20.0]
[1732551210936,19.41484362,243.79,243.7,32.23064362]
[1732551211146,19.41484362,243.79,243.68,4.1036]
[1732551211147,19.41484362,243.77,243.68,23.51844362]
[1732551211463,19.41484362,243.81,243.72,19.41484362]
[1732551211663,19.41484362,243.81,243.74,19.41484362]
[1732551211861,19.41484362,243.81,243.72,19.41484362]
[1732551212162,19.41484362,243.79,243.72,19.41484362]
[1732551213071,27.718464,243.86,243.72,19.41484362]
[1732551213072,19.41484362,243.81,243.72,19.41484362]
[1732551213265,19.41484362,243.81,243.72,23.51784362]
[1732551213635,19.41484362,243.79,243.7,19.41484362]
[1732551213838,3.6914,243.81,243.68,19.41484362]
[1732551213839,19.41484362,243.77,243.68,19.41484362]
[1732551214252,19.41484362,243.73,243.66,19.41484362]
[1732551214469,19.41484362,243.73,243.62,30.013]
[1732551214470,19.41484362,243.71,243.62,19.41484362]
[1732551214762,19.41484362,243.71,243.64,19.41484362]
[1732551215466,23.10774362,243.71,243.62,19.41484362]
[1732551215839,19.41484362,243.69,243.62,19.41484362]
[1732551216146,19.41484362,243.69,243.6,19.41484362]
[1732551216555,19.41484362,243.67,243.6,19.41484362]
[1732551216865,19.41484362,243.65,243.56,19.41484362]
[1732551217163,19.41484362,243.69,243.62,19.41484362]
[1732551217552,23.10804362,243.69,243.62,19.41484362]
[1732551217761,23.776884,243.68,243.62,19.41484362]
[1732551218133,23.776884,243.68,243.6,19.41484362]
[1732551218339,19.41484362,243.65,243.56,19.41484362]
[1732551218551,19.41484362,243.61,243.52,23.52114362]
[1732551218768,19.41484362,243.59,243.5,19.41484362]
[1732551218957,19.41484362,243.59,243.46,40.3072]
[1732551218958,19.41484362,243.59,243.52,19.41484362]
[1732551219162,23.776884,243.64,243.55,19.41484362]
[1732551219461,19.41484362,243.63,243.55,19.41484362]
[1732551219647,19.41484362,243.63,243.55,23.52064362]
[1732551219852,23.776884,243.62,243.55,19.41484362]
[1732551220051,19.41484362,243.63,243.55,19.41484362]
[1732551220254,23.776884,243.64,243.57,19.41484362]
[1732551220453,23.776884,243.66,243.57,19.41484362]
[1732551220653,19.41484362,243.65,243.57,19.41484362]
[1732551220854,19.41484362,243.65,243.48,19.41484362]
[1732551220855,23.776884,243.62,243.54,19.41484362]
[1732551221048,23.776884,243.62,243.54,23.52084362]
[1732551221248,19.41484362,243.68,243.58,19.41484362]
[1732551221449,19.41484362,243.64,243.57,20.0]
[1732551221668,23.776884,243.63,243.57,20.0]
[1732551221839,19.54033362,243.66,243.57,20.0]
[1732551222039,23.776884,243.65,243.57,20.0]
[1732551222359,23.776884,243.65,243.57,24.1055]
[1732551222956,23.776884,243.65,243.58,19.41484362]
[1732551223563,23.776884,243.65,243.58,23.52014362]
[1732551224060,23.776884,243.65,243.58,19.41484362]
[1732551225051,27.470684,243.65,243.57,20.0]
[1732551225246,19.41484362,243.64,243.56,23.52054362]
[1732551225469,19.41484362,243.58,243.5,19.41484362]
[1732551225653,19.41484362,243.55,243.47,4.1072]
[1732551225973,19.41484362,243.6,243.45,4.1076]
[1732551225974,19.41484362,243.53,243.45,4.1076]
[1732551226150,19.41484362,243.55,243.46,19.41484362]
[1732551226675,19.41484362,243.51,243.44,19.41484362]
[1732551226851,19.41484362,243.51,243.42,35.62034362]
[1732551227451,19.41484362,243.49,243.41,4.1082]
[1732551228085,19.41484362,243.49,243.42,19.41484362]
[1732551228780,19.41484362,243.49,243.41,4.1082]
[1732551229766,19.41484362,243.51,243.42,19.41484362]
[1732551230365,19.41484362,243.48,243.4,19.41484362]
[1732551230977,19.41484362,243.48,243.38,19.41484362]
[1732551231177,23.776884,243.45,243.38,19.41484362]
[1732551231483,19.41484362,243.44,243.39,20.0]
[1732551231676,23.776884,243.45,243.39,20.0]
[1732551232258,23.776884,243.45,243.38,19.41484362]
[1732551232583,19.41484362,243.48,243.38,19.41484362]
[1732551233580,19.41484362,243.44,243.36,19.41484362]
[1732551233885,19.41484362,243.4,243.33,4.1095]
[1732551234473,19.41484362,243.36,243.26,19.41484362]
[1732551234779,19.41484362,243.34,243.26,19.41484362]
[1732551235782,19.41484362,243.34,243.21,26.872]
[1732551235973,19.41484362,243.28,243.21,16.5929]
[1732551236170,19.41484362,243.28,243.21,4.1116]
[1732551237074,19.41484362,243.3,243.2,19.41484362]
[1732551237261,30.0,243.33,243.14,12.974]
[1732551237262,30.0,243.33,243.26,19.41484362]
[1732551237458,23.776884,243.32,243.28,19.41484362]
[1732551237663,30.0,243.33,243.28,19.41484362]
[1732551237963,19.41484362,243.32,243.24,19.41484362]
[1732551238160,19.41484362,243.3,243.22,19.41484362]
[1732551238375,19.41484362,243.28,243.2,19.41484362]
[1732551238577,19.41484362,243.3,243.22,19.41484362]
[1732551238761,19.41484362,243.28,243.2,19.41484362]
[1732551238962,23.776884,243.29,243.22,19.41484362]
[1732551239163,19.41484362,243.3,243.22,19.41484362]
[1732551239477,23.776884,243.29,243.22,19.41484362]
[1732551239674,19.41484362,243.36,243.28,19.41484362]
[1732551240187,19.41484362,243.34,243.26,19.41484362]
[1732551240692,19.41484362,243.36,243.28,19.41484362]
[1732551241070,19.41484362,243.38,243.3,19.41484362]
[1732551242095,19.41484362,243.42,243.34,19.41484362]
[1732551242387,19.41484362,243.44,243.36,19.41484362]
[1732551242599,19.41484362,243.42,243.34,19.41484362]
[1732551242961,19.41484362,243.38,243.3,19.41484362]
[1732551243171,0.12549,243.44,243.34,19.41484362]
[1732551243172,19.41484362,243.42,243.34,19.41484362]
[1732551244091,19.41484362,243.44,243.36,19.41484362]
[1732551244268,19.41484362,243.48,243.4,19.41484362]
[1732551244470,19.41484362,243.5,243.42,19.41484362]
[1732551244798,19.41484362,243.46,243.38,19.41484362]
[1732551244975,19.41484362,243.44,243.36,19.41484362]
[1732551245375,19.41484362,243.46,243.38,19.41484362]
[1732551245880,23.06019,243.53,243.36,19.41484362]
[1732551245881,19.41484362,243.44,243.36,19.41484362]
[1732551246079,19.41484362,243.44,243.36,23.52384362]
[1732551246271,19.41484362,243.48,243.4,19.41484362]
[1732551246473,3.82119,243.52,243.44,19.41484362]
[1732551246474,23.11054362,243.52,243.44,19.41484362]
[1732551246704,19.41484362,243.52,243.44,19.41484362]
[1732551247290,19.41484362,243.46,243.37,19.41484362]
[1732551247666,19.41484362,243.42,243.35,19.41484362]
[1732551247863,19.41484362,243.46,243.37,19.41484362]
[1732551248123,19.41484362,243.46,243.37,23.52374362]
[1732551248124,23.776884,243.45,243.37,23.52374362]
[1732551248267,19.41484362,243.46,243.37,23.52374362]
[1732551248474,19.41484362,243.48,243.39,19.41484362]
[1732551248794,19.41484362,243.46,243.37,23.52374362]
[1732551248971,19.41484362,243.46,243.39,19.41484362]
[1732551249171,19.41484362,243.49,243.41,19.41484362]
[1732551249388,19.41484362,243.51,243.41,19.41484362]
[1732551249583,19.41484362,243.49,243.41,19.41484362]
[1732551250095,23.11084362,243.51,243.42,4.1081]
[1732551250269,19.41484362,243.53,243.43,19.41484362]
[1732551250474,23.11044362,243.53,243.43,19.41484362]
[1732551250683,19.41484362,243.51,243.43,19.41484362]
[1732551251096,19.41484362,243.47,243.39,19.41484362]
[1732551251501,19.41484362,243.47,243.37,19.41484362]
[1732551251872,19.41484362,243.45,243.37,19.41484362]
[1732551252589,19.41484362,243.45,243.37,23.52374362]
[1732551252790,19.41484362,243.43,243.35,19.41484362]
[1732551252976,19.41484362,243.39,243.31,19.41484362]
[1732551253177,19.41484362,243.45,243.35,19.41484362]
[1732551253396,19.41484362,243.45,243.37,19.41484362]
[1732551253602,19.41484362,243.47,243.37,19.41484362]
[1732551253899,19.41484362,243.45,243.35,19.41484362]
[1732551254274,19.41484362,243.45,243.37,19.41484362]
[1732551254480,3.697,243.44,243.35,19.41484362]
[1732551254700,19.41484362,243.43,243.35,19.41484362]
[1732551255103,19.41484362,243.41,243.33,19.41484362]
[1732551255696,19.41484362,243.37,243.29,19.41484362]
[1732551255903,19.41484362,243.35,243.27,19.41484362]
[1732551256092,19.41484362,243.37,243.27,19.41484362]
[1732551256295,3.6982,243.36,243.27,19.41484362]
[1732551256501,19.41484362,243.35,243.27,19.41484362]
[1732551256805,3.6982,243.36,243.27,19.41484362]
[1732551256999,19.41484362,243.35,243.27,19.41484362]
[1732551257574,19.41484362,243.33,243.25,19.41484362]
[1732551257801,19.41484362,243.35,243.27,19.41484362]
[1732551258120,19.41484362,243.41,243.32,19.41484362]
[1732551258402,19.41484362,243.41,243.34,19.41484362]
[1732551259498,10.0,243.49,243.34,19.41484362]
[1732551259499,19.41484362,243.43,243.34,19.41484362]
[1732551260204,19.41484362,243.41,243.32,39.41484362]
[1732551260409,19.41484362,243.41,243.32,19.41484362]
[1732551260901,19.41484362,243.43,243.34,19.41484362]
[1732551261111,19.41484362,243.45,243.36,19.41484362]
[1732551261284,3.6967,243.46,243.3,4.1101]
[1732551261285,19.41484362,243.47,243.38,19.41484362]
[1732551261484,3.6964,243.48,243.4,19.41484362]
[1732551262009,19.41484362,243.49,243.4,19.41484362]
[1732551262401,3.6962,243.5,243.42,19.41484362]
[1732551263597,19.41484362,243.49,243.41,4.1082]
[1732551263908,19.41484362,243.51,243.42,19.41484362]
[1732551264784,19.41484362,243.55,243.46,19.41484362]
[1732551264988,19.41484362,243.53,243.44,39.41484362]
[1732551265517,23.11054362,243.53,243.44,39.41484362]
[1732551265695,19.41484362,243.45,243.38,12.0702]
[1732551265904,19.41484362,243.45,243.38,16.1789]
[1732551266206,19.41484362,243.49,243.41,19.41484362]
[1732551266403,19.41484362,243.49,243.39,19.41484362]
[1732551266610,19.41484362,243.47,243.39,19.41484362]
[1732551266913,19.41484362,243.47,243.38,16.1789]
[1732551267089,19.41484362,243.47,243.39,19.41484362]
[1732551267509,19.41484362,243.45,243.37,19.41484362]
[1732551267716,19.41484362,243.41,243.33,23.52444362]
[1732551268804,19.41484362,243.45,243.37,19.41484362]
[1732551269419,19.41484362,243.45,243.35,19.41484362]
[1732551269618,19.41484362,243.49,243.41,19.41484362]
[1732551269922,19.41484362,243.51,243.43,19.41484362]
[1732551270318,19.41484362,243.53,243.43,19.41484362]
[1732551270660,19.41484362,243.51,243.41,19.41484362]
[1732551270825,19.41484362,243.45,243.37,39.41484362]
[1732551271116,19.41484362,243.45,243.37,19.41484362]
[1732551271801,19.41484362,243.45,243.35,19.41484362]
[1732551272005,19.41484362,243.45,243.37,19.41484362]
[1732551272691,19.41484362,243.49,243.39,19.41484362]
[1732551272896,9.2393,243.53,243.31,23.0621]
[1732551272897,19.41484362,243.45,243.38,4.1088]
[1732551273206,19.41484362,243.45,243.37,19.41484362]
[1732551273512,19.41484362,243.49,243.41,19.41484362]
[1732551273703,19.41484362,243.47,243.39,19.41484362]
[1732551275729,23.11104362,243.49,243.41,23.52304362]
[1732551275937,19.41484362,243.49,243.41,23.52304362]
[1732551276445,12.15156501,243.51,243.42,12.15156501]
[1732551276639,12.15156501,243.53,243.45,4.1076]
[1732551277033,12.15156501,243.51,243.45,24.1076]
[1732551277223,12.15156501,243.49,243.4,12.15156501]
[1732551277429,12.15156501,243.42,243.32,4.1097]
[1732551277737,12.15156501,243.44,243.34,12.15156501]
[1732551277940,12.15156501,243.44,243.36,12.15156501]
[1732551278543,19.45325872,243.46,243.36,19.45325872]
[1732551278841,19.45325872,243.46,243.39,19.45325872]
[1732551279840,19.45325872,243.48,243.39,19.45325872]
[1732551280046,19.45325872,243.5,243.41,19.45325872]
[1732551280419,3.6956,243.53,243.33,10.0]
[1732551280420,19.45325872,243.48,243.38,19.45325872]
[1732551280822,19.45325872,243.43,243.31,13.0621]
[1732551281126,19.45325872,243.39,243.32,4.1098]
[1732551281537,19.45325872,243.39,243.31,32.51535872]
[1732551281722,19.45325872,243.39,243.31,36.62525872]
[1732551282047,19.45325872,243.37,243.29,23.56335872]
[1732551282224,19.45325872,243.35,243.27,23.56375872]
[1732551282424,19.45325872,243.33,243.25,23.56405872]
[1732551282624,19.45325872,243.27,243.17,19.45325872]
[1732551282846,19.45325872,243.24,243.16,4.1125]
[1732551283146,19.45325872,243.26,243.17,19.45325872]
[1732551284025,19.45325872,243.28,243.19,19.45325872]
[1732551284332,0.12549,243.29,243.21,19.45325872]
[1732551284534,24.027864,243.29,243.21,19.45325872]
[1732551285673,19.45325872,243.28,243.21,19.45325872]
[1732551286320,24.027864,243.29,243.21,19.45325872]
[1732551286518,19.45325872,243.32,243.25,19.45325872]
[1732551286723,12.4992,243.37,243.17,10.2806]
[1732551286724,19.45325872,243.31,243.23,19.45325872]
[1732551286946,19.45325872,243.36,243.21,19.45325872]
[1732551286947,19.45325872,243.29,243.21,19.45325872]
[1732551287445,19.45325872,243.27,243.19,19.45325872]
[1732551287649,19.45325872,243.29,243.21,19.45325872]
[1732551287856,19.45325872,243.29,243.21,23.56485872]
[1732551288942,19.45325872,243.31,243.23,19.45325872]
[1732551289653,0.12549,243.3,243.23,19.45325872]
[1732551289830,19.45325872,243.29,243.21,23.56485872]
[1732551290649,19.45325872,243.29,243.26,0.99925749]
[1732551292448,23.902374,243.3,243.26,0.99925749]
[1732551292746,19.57874872,243.29,243.26,0.99925749]
[1732551293338,0.12549,243.29,243.26,0.99925749]
[1732551294657,3.82479,243.29,243.26,0.99925749]
[1732551295031,0.12549,243.29,243.26,0.99925749]
[1732551295256,19.45325872,243.31,243.26,0.99925749]
[1732551295634,23.15225872,243.31,243.26,0.99925749]
[1732551296237,19.45325872,243.33,243.27,19.45325872]
[1732551296446,11.04244537,243.4,243.27,23.56385872]
[1732551296447,23.15175872,243.35,243.27,23.56385872]
[1732551296637,23.15175872,243.35,243.27,19.45325872]
[1732551297244,19.45325872,243.37,243.27,23.56385872]
[1732551298149,19.45325872,243.35,243.27,19.45325872]
[1732551298329,19.45325872,243.35,243.27,23.56385872]
[1732551298532,23.15105872,243.39,243.31,19.45325872]
[1732551298759,23.15105872,243.39,243.29,19.45325872]
[1732551298948,0.12549,243.38,243.29,19.45325872]
[1732551299135,19.45325872,243.37,243.29,19.45325872]
[1732551299535,19.45325872,243.37,243.29,23.56345872]
[1732551299760,19.45325872,243.37,243.29,19.45325872]
[1732551299954,19.45325872,243.35,243.27,19.45325872]
[1732551300363,0.12549,243.37,243.3,12.1655392]
[1732551300676,12.1655392,243.38,243.3,12.1655392]
[1732551301436,3.698,243.37,243.3,12.1655392]
[1732551301648,36.0679132,243.36,243.28,12.1655392]
[1732551301957,12.1655392,243.34,243.26,25.65699669]
[1732551302157,36.0679132,243.36,243.28,12.1655392]
[1732551302365,15.8634392,243.38,243.3,12.1655392]
[1732551302931,0.12549,243.35,243.28,12.1655392]
[1732551303149,0.12549,243.31,243.26,0.99925749]
[1732551303345,27.601274,243.31,243.26,0.99925749]
[1732551303547,30.0,243.31,243.26,0.99925749]
[1732551303734,30.0,243.31,243.27,12.1655392]
[1732551303947,12.1655392,243.36,243.27,12.1655392]
[1732551304168,12.1655392,243.38,243.31,12.1655392]
[1732551304342,15.8628392,243.42,243.33,12.1655392]
[1732551304540,12.1655392,243.44,243.37,12.1655392]
[1732551304754,12.1655392,243.48,243.41,12.1655392]
[1732551304938,12.1655392,243.44,243.37,12.1655392]
[1732551305459,12.1655392,243.46,243.38,4.1088]
[1732551305763,12.1655392,243.46,243.39,12.1655392]
[1732551306144,12.935,243.53,243.35,12.1655392]
[1732551306145,12.1655392,243.43,243.35,12.1655392]
[1732551306463,12.935,243.53,243.39,12.1655392]
[1732551306662,12.1655392,243.48,243.39,12.1655392]
[1732551306849,12.1655392,243.46,243.39,12.1655392]
[1732551307354,12.1655392,243.44,243.37,12.1655392]
[1732551307574,12.1655392,243.44,243.37,16.2744392]
[1732551307743,12.1655392,243.46,243.39,12.1655392]
[1732551308648,19.2358,243.62,243.45,12.1655392]
[1732551308851,12.1655392,243.53,243.45,12.1655392]